fUST/lending_fUST_20250227
["ID","MTS","AMOUNT","RATE_DAILY","PERIOD"]
[354754990,1740667832969,-152.07,0.00043688,2]
[354754991,1740667832978,-1523.96801493,0.00043698,2]
[354754992,1740667832990,-311.02672839,0.00043698,2]
[354754993,1740667833018,-543.15596667,0.00043698,2]
[354754994,1740667833076,-22521.84929001,0.00043698,2]
[354754995,1740667833086,-250.0,0.00043698,2]
[354754996,1740667833097,-500.75272524,0.000437,10]
[354754997,1740667833107,-500.0,0.000437,7]
[354754998,1740667833117,-500.0,0.000437,10]
[354754999,1740667833127,-192.18462501,0.000437,10]
[354755008,1740667838569,-152.07,0.00043688,2]
[354755009,1740667838580,-152.07,0.0004369,2]
[354755010,1740667838589,-307.81537499,0.000437,10]
[354755011,1740667838599,-500.0,0.000437,10]
[354755012,1740667838609,-175.81,0.00043924,30]
[354755013,1740667838619,-152.07,0.00043974,2]
[354755014,1740667838629,-3944.4980956,0.00043994,2]
[354755015,1740667838645,-2716.64680504,0.00043994,2]
[354755016,1740667838658,-151.0,0.00045,120]
[354755017,1740667838668,-1077.0,0.00046431,5]
[354755018,1740667838678,-160.0,0.0004708,2]
[354755019,1740667838687,-260.96120726,0.0004708,79]
[354755020,1740667838697,-1000.0,0.00048,120]
[354755021,1740667838707,-5705.60276214,0.00048064,120]
[354755022,1740667838722,-8212.79603347,0.00048064,120]
[354755023,1740667838732,-5000.0,0.00049041,10]
[354755024,1740667838742,-10000.0,0.00049068,10]
[354755025,1740667838751,-1095.92,0.00049086,30]
[354755026,1740667838761,-913.26,0.00049086,30]
[354755027,1740667838770,-15000.0,0.00049096,10]
[354755028,1740667838780,-500.0,0.00049113,30]
[354755029,1740667838790,-1241.31,0.00049113,30]
[354755030,1740667838799,-2272.49,0.00049113,30]
[354755031,1740667838808,-1893.75,0.00049113,30]
[354755032,1740667838818,-1578.12,0.00049113,30]
[354755033,1740667838828,-1315.1,0.00049113,30]
[354755034,1740667838837,-7526.95874443,0.00049123,120]
[354755035,1740667838866,-247.43459892,0.00049123,120]
[354755036,1740667838880,-11974.37665665,0.00049123,120]
[354755037,1740667838890,-20000.0,0.00049123,10]
[354755038,1740667838899,-8299.68787349,0.00049151,10]
[354755039,1740667838910,-1102.33728723,0.00049179,10]
[354755040,1740667838919,-326.99935523,0.00049214,2]
[354755041,1740667838929,-1976.15217496,0.00049265,2]
[354755042,1740667838939,-1318.15866282,0.00049279,30]
[354755043,1740667838948,-326.99935523,0.00049283,2]
[354755044,1740667838958,-151.0,0.00049284,2]
[354755045,1740667838967,-160.30984754,0.00049284,2]
[354755046,1740667838976,-500.0,0.00049284,2]
[354755047,1740667838986,-500.0,0.00049314,120]
[354755048,1740667838995,-500.0,0.00049314,120]
[354755049,1740667839004,-535.94966363,0.00049314,120]
[354755050,1740667839013,-500.0,0.00049314,120]
[354755051,1740667839023,-390.59826086,0.00049314,31]
[354755052,1740667839036,-500.0,0.00049314,120]
[354755053,1740667839045,-184.86475829,0.00049314,120]
[354755054,1740667839054,-500.0,0.00049314,120]
[354755055,1740667839063,-487.27536292,0.00049314,120]
[354755056,1740667839073,-500.0,0.00049314,120]
[354755057,1740667839082,-500.0,0.00049314,120]
[354755058,1740667839092,-500.0,0.00049314,120]
[354755059,1740667839101,-500.0,0.00049314,120]
[354755060,1740667839111,-500.0,0.00049314,120]
[354755061,1740667839121,-500.0,0.00049314,120]
[354755062,1740667839130,-500.0,0.00049314,120]
[354755063,1740667839140,-500.0,0.00049314,120]
[354755064,1740667839150,-500.0,0.00049314,120]
[354755065,1740667839162,-500.0,0.00049314,120]
[354755066,1740667839172,-500.0,0.00049314,120]
[354755067,1740667839181,-500.0,0.00049314,120]
[354755068,1740667839191,-500.0,0.00049314,120]
[354755069,1740667839200,-500.0,0.00049314,120]
[354755070,1740667839209,-500.0,0.00049314,120]
[354755071,1740667839219,-500.0,0.00049314,120]
[354755072,1740667839228,-500.0,0.00049314,120]
[354755073,1740667839237,-500.0,0.00049314,120]
[354755074,1740667839247,-500.0,0.00049314,120]
[354755075,1740667839257,-500.0,0.00049314,120]
[354755076,1740667839266,-500.0,0.00049314,120]
[354755077,1740667839276,-500.0,0.00049314,120]
[354755078,1740667839286,-311.19348748,0.00049314,120]
[354755079,1740667839296,-500.0,0.00049314,120]
[354755080,1740667839306,-500.0,0.00049314,120]
[354755081,1740667839315,-500.0,0.00049314,2]
[354755082,1740667839325,-500.0,0.00049314,2]
[354755083,1740667839335,-500.0,0.00049314,2]
[354755084,1740667839344,-500.0,0.00049314,2]
[354755085,1740667839353,-500.0,0.00049314,2]
[354755086,1740667839363,-500.0,0.00049314,2]
[354755087,1740667839372,-500.0,0.00049314,2]
[354755088,1740667839382,-500.0,0.00049314,2]
[354755089,1740667839391,-500.0,0.00049314,2]
[354755090,1740667839401,-500.0,0.00049314,2]
[354755091,1740667839413,-500.0,0.00049314,2]
[354755092,1740667839422,-500.0,0.00049314,2]
[354755093,1740667839431,-500.0,0.00049314,2]
[354755094,1740667839536,-500.0,0.00049314,2]
[354755095,1740667839545,-500.0,0.00049314,2]
[354755096,1740667839555,-500.0,0.00049314,2]
[354755097,1740667839564,-500.0,0.00049314,2]
[354755098,1740667839574,-392.38091053,0.00049314,2]
[354755099,1740667839583,-500.0,0.00049314,2]
[354755100,1740667839592,-500.0,0.00049314,2]
[354755101,1740667839601,-500.0,0.00049314,2]
[354755102,1740667839610,-500.0,0.00049314,2]
[354755103,1740667839620,-1000.0,0.00049314,120]
[354755104,1740667839630,-500.0,0.00049315,30]
[354755105,1740667839639,-500.86906289,0.00049315,120]
[354755106,1740667839649,-500.0,0.00049315,120]
[354755107,1740667839661,-500.0,0.00049315,120]
[354755108,1740667839671,-585.18702144,0.00049315,120]
[354755109,1740667839680,-500.0,0.00049315,120]
[354755110,1740667839689,-500.0,0.00049315,120]
[354755111,1740667839698,-500.0,0.00049315,120]
[354755112,1740667839707,-500.0,0.00049315,120]
[354755113,1740667839717,-500.0,0.00049315,120]
[354755114,1740667839727,-19607.61712864,0.00049315,7]
[354755115,1740667839735,-500.0,0.00049315,120]
[354755116,1740667839745,-463.94485795,0.00049315,120]
[354755117,1740667839754,-500.0,0.00049315,120]
[354755118,1740667839763,-500.0,0.00049315,120]
[354755119,1740667839772,-500.0,0.00049315,120]
[354755120,1740667839782,-500.0,0.00049315,120]
[354755121,1740667839791,-736.46,0.00049315,120]
[354755122,1740667839800,-500.0,0.00049315,120]
[354755123,1740667839809,-500.0,0.00049315,120]
[354755124,1740667839818,-500.0,0.00049315,120]
[354755125,1740667839828,-500.0,0.00049315,120]
[354755126,1740667839837,-500.0,0.00049315,120]
[354755127,1740667839847,-500.0,0.00049315,120]
[354755128,1740667839856,-500.0,0.00049315,120]
[354755129,1740667839866,-500.0,0.00049315,120]
[354755130,1740667839875,-500.0,0.00049315,120]
[354755131,1740667839884,-500.0,0.00049315,120]
[354755132,1740667839893,-500.0,0.00049315,120]
[354755133,1740667839902,-500.0,0.00049315,120]
[354755134,1740667839915,-500.0,0.00049315,120]
[354755135,1740667839924,-500.0,0.00049315,120]
[354755136,1740667839933,-500.0,0.00049315,120]
[354755137,1740667839943,-500.0,0.00049315,120]
[354755138,1740667839953,-500.0,0.00049315,120]
[354755139,1740667839962,-500.0,0.00049315,120]
[354755140,1740667839972,-500.0,0.00049315,120]
[354755141,1740667839981,-368.78502374,0.00049315,120]
[354755146,1740667840962,-500.0,0.00049315,120]
[354755147,1740667840972,-503.24678145,0.00049315,120]
[354755148,1740667840982,-308.06375655,0.00049315,120]
[354755158,1740667845239,-761.05,0.00049305,30]
[354755159,1740667845249,-191.93624345,0.00049315,120]
[354755160,1740667845259,-500.0,0.00049315,120]
[354755161,1740667845269,-160.96240777,0.00049315,120]
[354755162,1740667845279,-419.56904838,0.00049315,120]
[354755163,1740667845288,-500.0,0.00049315,120]
[354755164,1740667845298,-220.56218032,0.00049315,120]
[354755165,1740667845308,-500.0,0.00049315,120]
[354755166,1740667845319,-500.0,0.00049315,120]
[354755167,1740667845328,-500.0,0.00049315,120]
[354755168,1740667845338,-500.0,0.00049315,120]
[354755169,1740667845349,-500.0,0.00049315,120]
[354755170,1740667845359,-500.0,0.00049315,120]
[354755171,1740667845369,-500.0,0.00049315,120]
[354755172,1740667845379,-500.0,0.00049315,120]
[354755173,1740667845389,-501.61087686,0.00049315,120]
[354755174,1740667845399,-500.0,0.00049315,120]
[354755175,1740667845516,-500.0,0.00049315,120]
[354755176,1740667845526,-500.0,0.00049315,120]
[354755177,1740667845536,-500.0,0.00049315,120]
[354755178,1740667845546,-406.70476747,0.00049315,120]
[354755179,1740667845556,-203.73351609,0.00049315,120]
[354755180,1740667845565,-500.0,0.00049315,120]
[354755181,1740667845576,-500.0,0.00049315,120]
[354755182,1740667845587,-630.09995008,0.00049315,120]
[354755183,1740667845596,-500.0,0.00049315,120]
[354755184,1740667845606,-500.0,0.00049315,120]
[354755185,1740667845616,-500.0,0.00049315,120]
[354755186,1740667845626,-500.0,0.00049315,120]
[354755187,1740667845636,-500.0,0.00049315,120]
[354755188,1740667845645,-500.0,0.00049315,120]
[354755189,1740667845655,-500.91709456,0.00049315,120]
[354755190,1740667845667,-500.88916976,0.00049315,120]
[354755191,1740667845677,-500.0,0.00049315,120]
[354755192,1740667845686,-500.0,0.00049315,120]
[354755193,1740667845696,-500.0,0.00049315,120]
[354755194,1740667845706,-297.08668723,0.00049315,10]
[354755195,1740667845716,-500.0,0.00049315,120]
[354755196,1740667845726,-500.0,0.00049315,120]
[354755197,1740667845736,-262.10947147,0.00049315,120]
[354755198,1740667845745,-3000.0,0.00049315,120]
[354755199,1740667845755,-500.0,0.00049315,120]
[354755200,1740667845764,-500.0,0.00049315,120]
[354755201,1740667845774,-500.0,0.00049315,120]
[354755202,1740667845785,-500.0,0.00049315,120]
[354755203,1740667845795,-500.0,0.00049315,120]
[354755204,1740667845804,-500.0,0.00049315,120]
[354755205,1740667845814,-500.0,0.00049315,120]
[354755206,1740667845823,-500.0,0.00049315,120]
[354755207,1740667845833,-500.0,0.00049315,120]
[354755208,1740667845842,-503.74310598,0.00049315,120]
[354755209,1740667845852,-500.0,0.00049315,120]
[354755210,1740667845862,-500.0,0.00049315,120]
[354755211,1740667845872,-938.01609832,0.00049315,30]
[354755212,1740667845882,-500.0,0.00049315,120]
[354755213,1740667845893,-500.0,0.00049315,120]
[354755214,1740667845902,-501.81467165,0.00049315,120]
[354755215,1740667845912,-500.0,0.00049315,120]
[354755216,1740667845929,-500.71202415,0.00049315,120]
[354755217,1740667845941,-500.0,0.00049315,120]
[354755218,1740667845952,-500.0,0.00049315,120]
[354755219,1740667845963,-500.0,0.00049315,120]
[354755220,1740667845972,-500.68709343,0.00049315,120]
[354755221,1740667845982,-23.03451155,0.00049315,120]
[354755287,1740667847635,5000.0,0.0004,2]
[354756037,1740667855790,5000.0,0.0004,2]
[354756814,1740667863556,1993.78133092,0.0004,2]
[354758256,1740667878823,3006.21866908,0.0004,2]
[354759785,1740668130582,252.86661738,0.0004,2]
[354759786,1740668194462,5000.0,0.0003,30]
[354759787,1740668202806,5000.0,0.0003,30]
[354759788,1740668217991,5000.0,0.0003,30]
[354759789,1740668613149,-1000.0,0.00052598,30]
[354759790,1740668613196,-899.35192655,0.00052598,120]
[354759791,1740668613242,-1591.77287772,0.00052598,120]
[354759792,1740668613283,-1860.58111798,0.00052598,120]
[354759793,1740668613331,-675.88406855,0.00052598,120]
[354759794,1740668613377,-933.24981735,0.00052598,120]
[354759795,1740668613422,-1586.35995316,0.00052598,120]
[354759796,1740668613467,-1034.42431385,0.00052598,120]
[354759797,1740668613515,-2533.216787,0.00052598,120]
[354759798,1740668613560,-14707.41881563,0.00052598,120]
[354759799,1740668613608,-989.7683905,0.00052598,120]
[354759800,1740668613655,-1680.46117078,0.00052598,120]
[354759801,1740668613702,-1726.26198467,0.00052598,120]
[354759802,1740668613751,-3391.03877754,0.00052598,120]
[354759803,1740668613802,-2000.0,0.00052598,60]
[354759804,1740668613850,-3000.0,0.00052598,120]
[354759805,1740668613896,-174857.0,0.00052598,120]
[354759806,1740668613945,-487.0,0.00052598,60]
[354759807,1740668616391,5000.0,0.00027,10]
[354759808,1740668624473,2810.32380648,0.00027,10]
[354759865,1740669033044,-500.0,0.00025205,2]
[354759867,1740669033055,-500.0,0.00025205,2]
[354759869,1740669033066,-182.812358,0.00032877,2]
[354759871,1740669033076,-414.9952781,0.00034595,120]
[354759872,1740669033086,-400.0,0.00034759,2]
[354759873,1740669033097,-10000.0,0.0003476,2]
[354759874,1740669033111,-250.0,0.00034804,2]
[354759876,1740669033121,-2107.0588245,0.0003508,2]
[354759878,1740669033131,-507.70865857,0.000359,7]
[354759879,1740669033141,-3510.89479105,0.000362,98]
[354759880,1740669033260,-1766.35982697,0.000362,98]
[354759881,1740669033360,-884.45007751,0.000362,98]
[354759889,1740669038778,-2795.42200666,0.000362,98]
[354759891,1740669038788,-560.0,0.00037279,2]
[354759893,1740669038797,-480.07799334,0.00037659,7]
[354759894,1740669038834,-27.63066505,0.00037659,7]
[354759895,1740669038844,-507.70865839,0.00039417,8]
[354759896,1740669038853,-783.0,0.00039981,5]
[354759897,1740669038865,-507.70865839,0.00041176,9]
[354759898,1740669038875,-1095.74626301,0.00042211,28]
[354759899,1740669038885,-391.468906,0.00042293,2]
[354759900,1740669038895,-2749.84405181,0.00042311,2]
[354759901,1740669038907,-22150.15594819,0.00042311,2]
[354759902,1740669038917,-182.507023,0.00042311,2]
[354759903,1740669038927,-500.0,0.000424,10]
[354759904,1740669038937,-314.2171911,0.000424,10]
[354759905,1740669038946,-550.24253711,0.000424,10]
[354759906,1740669038956,-158.95493951,0.000424,10]
[354759907,1740669038965,-500.0,0.000424,10]
[354759908,1740669038975,-500.0,0.000424,10]
[354759909,1740669038985,-500.0,0.000424,10]
[354759910,1740669038995,-1097.0,0.0004288,5]
[354759911,1740669039004,-507.70865839,0.00042934,9]
[354759912,1740669039014,-8957.12670218,0.00043503,120]
[354759913,1740669039024,-2837.28863284,0.000436,120]
[354759914,1740669039034,-507.70865839,0.00044693,10]
[354759915,1740669039043,-151.0,0.00045,120]
[354759916,1740669039053,-794.0,0.00045988,5]
[354759917,1740669039064,-507.70865839,0.00046452,10]
[354759918,1740669039073,-270.62146187,0.00047879,10]
[354759919,1740669039083,-1024.71643868,0.00047879,10]
[354759920,1740669039092,-507.70865839,0.0004821,11]
[354759921,1740669039101,-1095.74626299,0.00048309,28]
[354759922,1740669039114,-498.0,0.00049,120]
[354759923,1740669039123,-1000.0,0.00049,120]
[354759924,1740669039133,-2000.0,0.00049,3]
[354759925,1740669039143,-229.73457373,0.00049215,2]
[354759926,1740669039153,-3000.0,0.00049215,2]
[354759927,1740669039162,-160.0,0.0004924,2]
[354759928,1740669039172,-229.73457371,0.00049259,2]
[354759929,1740669039182,-151.0,0.000493,24]
[354759930,1740669039191,-151.0,0.000493,23]
[354759931,1740669039201,-229.73457371,0.00049302,2]
[354759932,1740669039211,-634.21,0.00049303,30]
[354759933,1740669039221,-528.51,0.00049303,30]
[354759934,1740669039230,-440.43,0.00049303,30]
[354759935,1740669039239,-367.02,0.00049303,30]
[354759936,1740669039248,-305.85,0.00049304,30]
[354759937,1740669039257,-254.88,0.00049304,30]
[354759938,1740669039267,-212.4,0.00049304,30]
[354759939,1740669039276,-177.0,0.00049304,30]
[354759940,1740669039285,-885.0,0.00049304,30]
[354759941,1740669039294,-500.0,0.00049304,30]
[354759942,1740669039303,-1000.0,0.00049313,120]
[354759943,1740669039311,-18925.9,0.00049313,120]
[354759944,1740669039321,-500.0,0.00049314,120]
[354759945,1740669039331,-500.0,0.00049314,120]
[354759946,1740669039340,-419.93,0.00049314,120]
[354759947,1740669039349,-500.0,0.00049314,2]
[354759948,1740669039359,-500.0,0.00049314,2]
[354759949,1740669039370,-500.0,0.00049314,2]
[354759950,1740669039379,-500.0,0.00049314,2]
[354759951,1740669039388,-209.47602598,0.00049314,2]
[354759952,1740669039397,-500.0,0.00049314,2]
[354759953,1740669039407,-500.0,0.00049314,2]
[354759954,1740669039416,-500.0,0.00049314,2]
[354759955,1740669039425,-500.0,0.00049314,2]
[354759956,1740669039436,-500.0,0.00049314,2]
[354759957,1740669039446,-500.0,0.00049314,120]
[354759958,1740669039456,-500.0,0.00049314,2]
[354759959,1740669039465,-500.0,0.00049314,120]
[354759960,1740669039475,-500.0,0.00049314,120]
[354759961,1740669039485,-500.0,0.00049314,2]
[354759962,1740669039494,-500.0,0.00049314,120]
[354759963,1740669039503,-500.0,0.00049314,2]
[354759964,1740669039513,-311.24866086,0.00049314,120]
[354759965,1740669039523,-500.0,0.00049314,2]
[354759966,1740669039532,-500.0,0.00049314,120]
[354759967,1740669039541,-500.0,0.00049314,2]
[354759968,1740669039550,-500.0,0.00049314,120]
[354759969,1740669039559,-500.0,0.00049314,120]
[354759970,1740669039569,-500.0,0.00049314,2]
[354759971,1740669039578,-500.0,0.00049314,120]
[354759972,1740669039587,-500.0,0.00049314,120]
[354759973,1740669039596,-500.0,0.00049314,2]
[354759974,1740669039605,-500.0,0.00049314,120]
[354759975,1740669039617,-500.0,0.00049314,120]
[354759976,1740669039627,-500.0,0.00049314,120]
[354759977,1740669039636,-500.0,0.00049314,2]
[354759978,1740669039645,-500.0,0.00049314,120]
[354759979,1740669039654,-500.0,0.00049314,120]
[354759980,1740669039664,-500.0,0.00049314,120]
[354759981,1740669039673,-500.0,0.00049314,120]
[354759982,1740669039682,-500.0,0.00049314,2]
[354759983,1740669039691,-500.0,0.00049314,120]
[354759984,1740669039700,-500.0,0.00049314,120]
[354759985,1740669039709,-500.0,0.00049314,120]
[354759986,1740669039719,-500.0,0.00049314,120]
[354759987,1740669039728,-500.0,0.00049314,120]
[354759988,1740669039737,-500.0,0.00049314,120]
[354759989,1740669039746,-500.0,0.00049314,120]
[354759990,1740669039756,-500.0,0.00049314,120]
[354759991,1740669039766,-500.0,0.00049314,120]
[354759992,1740669039775,-500.0,0.00049314,120]
[354759993,1740669039785,-500.0,0.00049314,120]
[354759994,1740669039795,-500.0,0.00049314,120]
[354759995,1740669039804,-500.0,0.00049314,120]
[354759996,1740669039813,-500.0,0.00049314,120]
[354759997,1740669039823,-500.0,0.00049314,120]
[354759998,1740669039832,-500.0,0.00049314,120]
[354759999,1740669039842,-500.0,0.00049314,120]
[354760000,1740669039852,-500.0,0.00049314,120]
[354760001,1740669039863,-500.0,0.00049314,120]
[354760002,1740669039872,-500.0,0.00049314,120]
[354760003,1740669039882,-500.0,0.00049314,120]
[354760004,1740669039892,-500.0,0.00049314,120]
[354760005,1740669039902,-500.0,0.00049314,120]
[354760006,1740669039912,-500.0,0.00049314,120]
[354760007,1740669039921,-500.0,0.00049314,120]
[354760008,1740669039931,-500.0,0.00049314,120]
[354760009,1740669039940,-500.0,0.00049314,120]
[354760010,1740669039950,-500.0,0.00049314,120]
[354760011,1740669039959,-500.0,0.00049314,120]
[354760012,1740669040072,-500.0,0.00049314,120]
[354760013,1740669040082,-500.0,0.00049314,120]
[354760014,1740669040092,-500.0,0.00049314,120]
[354760015,1740669040102,-500.0,0.00049314,120]
[354760016,1740669040112,-500.0,0.00049314,120]
[354760017,1740669040122,-500.0,0.00049314,120]
[354760018,1740669040132,-500.0,0.00049314,120]
[354760019,1740669040142,-500.0,0.00049314,120]
[354760020,1740669040151,-500.0,0.00049314,120]
[354760021,1740669040161,-500.0,0.00049314,120]
[354760022,1740669040171,-500.0,0.00049314,120]
[354760023,1740669040181,-500.0,0.00049314,120]
[354760024,1740669040191,-500.0,0.00049314,120]
[354760025,1740669040201,-432.37315448,0.00049314,120]
[354760026,1740669040211,-500.0,0.00049314,120]
[354760028,1740669040220,-271.95194213,0.00049314,120]
[354760030,1740669040230,-500.0,0.00049314,120]
[354760032,1740669040240,-500.0,0.00049314,120]
[354760034,1740669040250,-500.0,0.00049314,120]
[354760036,1740669040260,-500.0,0.00049314,120]
[354760038,1740669040269,-336.04344964,0.00049314,120]
[354760040,1740669040279,-500.0,0.00049314,120]
[354760042,1740669040289,-500.0,0.00049314,120]
[354760044,1740669040299,-500.0,0.00049314,120]
[354760046,1740669040308,-500.0,0.00049314,120]
[354760048,1740669040318,-500.0,0.00049314,120]
[354760050,1740669040327,-500.0,0.00049314,120]
[354760052,1740669040336,-450.0,0.00049314,120]
[354760054,1740669040346,-500.0,0.00049314,120]
[354760056,1740669040356,-500.0,0.00049314,120]
[354760058,1740669040370,-500.0,0.00049314,120]
[354760060,1740669040379,-500.0,0.00049314,31]
[354760062,1740669040389,-182.43276861,0.00049314,31]
[354760064,1740669040399,-500.0,0.00049314,31]
[354760066,1740669040409,-500.0,0.00049314,31]
[354760068,1740669040419,-500.0,0.00049314,31]
[354760070,1740669040429,-500.0,0.00049314,31]
[354760072,1740669040441,-500.0,0.00049314,31]
[354760074,1740669040451,-151.0,0.00049315,120]
[354760076,1740669040461,-500.0,0.00049315,120]
[354760078,1740669040470,-502.79568608,0.00049315,30]
[354760080,1740669040480,-500.0,0.00049315,120]
[354760083,1740669040491,-183.702969,0.00049315,120]
[354760086,1740669040500,-500.0,0.00049315,120]
[354760089,1740669040511,-500.0,0.00049315,120]
[354760092,1740669040520,-151.0,0.00049315,120]
[354760094,1740669040530,-151.0,0.00049315,120]
[354760096,1740669040540,-500.0,0.00049315,120]
[354760098,1740669040550,-502.69278621,0.00049315,120]
[354760100,1740669040560,-151.359497,0.00049315,120]
[354760102,1740669040570,-151.0,0.00049315,120]
[354760104,1740669040579,-151.0,0.00049315,120]
[354760106,1740669040589,-497.12912237,0.00049315,120]
[354760108,1740669040599,-500.0,0.00049315,120]
[354760111,1740669040608,-500.0,0.00049315,120]
[354760114,1740669040626,-500.0,0.00049315,120]
[354760117,1740669040636,-500.0,0.00049315,7]
[354760120,1740669040646,-500.0,0.00049315,120]
[354760123,1740669040656,-560.99881457,0.00049315,120]
[354760125,1740669040665,-500.0,0.00049315,120]
[354760128,1740669040675,-500.0,0.00049315,120]
[354760131,1740669040684,-500.0,0.00049315,120]
[354760134,1740669040694,-500.0,0.00049315,120]
[354760137,1740669040703,-500.0,0.00049315,120]
[354760141,1740669040713,-500.0,0.00049315,120]
[354760143,1740669040723,-500.0,0.00049315,120]
[354760147,1740669040733,-500.0,0.00049315,120]
[354760149,1740669040742,-500.0,0.00049315,120]
[354760151,1740669040752,-189.494709,0.00049315,120]
[354760153,1740669040761,-189.494709,0.00049315,120]
[354760156,1740669040770,-500.0,0.00049315,120]
[354760158,1740669040780,-391.51703964,0.00049315,120]
[354760160,1740669040789,-189.494709,0.00049315,120]
[354760162,1740669040800,-500.0,0.00049315,120]
[354760164,1740669040810,-189.494709,0.00049315,120]
[354760167,1740669040820,-151.0,0.00049315,120]
[354760170,1740669040829,-500.0,0.00049315,120]
[354760173,1740669040839,-500.0,0.00049315,120]
[354760176,1740669040848,-500.0,0.00049315,120]
[354760179,1740669040857,-500.0,0.00049315,120]
[354760182,1740669040870,-500.0,0.00049315,120]
[354760186,1740669040880,-500.0,0.00049315,120]
[354760189,1740669040890,-500.0,0.00049315,120]
[354760192,1740669040900,-500.0,0.00049315,120]
[354760194,1740669040909,-500.0,0.00049315,120]
[354760197,1740669040919,-500.0,0.00049315,120]
[354760201,1740669040929,-500.0,0.00049315,120]
[354760204,1740669040939,-500.0,0.00049315,120]
[354760207,1740669040948,-500.0,0.00049315,120]
[354760210,1740669040958,-500.0,0.00049315,120]
[354760213,1740669040967,-500.0,0.00049315,120]
[354760216,1740669040977,-500.0,0.00049315,120]
[354760219,1740669040986,-500.0,0.00049315,120]
[354760222,1740669040995,-503.17116881,0.00049315,120]
[354760225,1740669041005,-500.0,0.00049315,120]
[354760228,1740669041014,-500.0,0.00049315,120]
[354760231,1740669041023,-500.0,0.00049315,120]
[354760234,1740669041032,-294.81283306,0.00049315,120]
[354760237,1740669041041,-500.0,0.00049315,120]
[354760239,1740669041050,-500.0,0.00049315,120]
[354760243,1740669041061,-500.0,0.00049315,120]
[354760245,1740669041070,-500.0,0.00049315,120]
[354760247,1740669041079,-290.02972658,0.00049315,120]
[354760250,1740669041089,-500.0,0.00049315,120]
[354760253,1740669041098,-502.34639093,0.00049315,120]
[354760256,1740669041107,-500.0,0.00049315,120]
[354760259,1740669041120,-500.0,0.00049315,120]
[354760262,1740669041129,-330.02628145,0.00049315,120]
[354760265,1740669041138,-506.45072332,0.00049315,120]
[354760268,1740669041148,-500.0,0.00049315,120]
[354760271,1740669041157,-500.0,0.00049315,30]
[354760274,1740669041166,-500.71971751,0.00049315,120]
[354760277,1740669041176,-151.0,0.00049315,120]
[354760280,1740669041185,-500.0,0.00049315,120]
[354760283,1740669041195,-500.0,0.00049315,120]
[354760286,1740669041205,-500.0,0.00049315,120]
[354760289,1740669041214,-500.0,0.00049315,20]
[354760292,1740669041224,-500.0,0.00049315,20]
[354760295,1740669041235,-500.0,0.00049315,20]
[354760298,1740669041244,-500.0,0.00049315,20]
[354760301,1740669041253,-500.0,0.00049315,20]
[354760304,1740669041263,-306.71231268,0.00049315,20]
[354760307,1740669041272,-500.0,0.00049315,120]
[354760309,1740669041281,-500.0,0.00049315,120]
[354760312,1740669041291,-500.0,0.00049315,120]
[354760315,1740669041300,-500.0,0.00049315,120]
[354760318,1740669041310,-634.507492,0.00049315,120]
[354760321,1740669041319,-634.507492,0.00049315,120]